fUSD/lending_fUSD_20250216
["ID","MTS","AMOUNT","RATE_DAILY","PERIOD"]
[353245561,1739715050004,-500.0,0.00010958,2]
[353245562,1739715050013,-951.56,0.00010958,2]
[353245563,1739715050022,-830.8,0.00010958,2]
[353245564,1739715050032,-500.0,0.00010958,2]
[353245565,1739715050042,-500.0,0.00010958,2]
[353245566,1739715050051,-500.0,0.00010958,2]
[353245567,1739715050060,-500.0,0.00010958,2]
[353245568,1739715050069,-737.81,0.00010958,2]
[353245569,1739715050079,-500.0,0.00010958,2]
[353245570,1739715050090,-500.0,0.00010958,2]
[353245571,1739715050101,-504.74650064,0.00010958,2]
[353245572,1739715050111,-500.0,0.00010958,2]
[353245573,1739715050122,-1159.06,0.00010958,2]
[353245574,1739715050132,-500.0,0.00010958,2]
[353245575,1739715050143,-500.0,0.00010958,2]
[353245576,1739715050154,-500.0,0.00010958,2]
[353245577,1739715050164,-500.0,0.00010958,2]
[353245578,1739715050175,-500.97002798,0.00010958,2]
[353245579,1739715050186,-500.0,0.00010958,2]
[353245580,1739715050199,-500.0,0.00010958,2]
[353245581,1739715050209,-500.0,0.00010958,2]
[353245582,1739715050220,-502.0320031,0.00010958,2]
[353245583,1739715050230,-3660.94,0.00010958,2]
[353245584,1739715050240,-503.01472048,0.00010958,2]
[353245585,1739715050250,-500.0,0.00010958,2]
[353245586,1739715050259,-500.0,0.00010958,2]
[353245587,1739715050270,-500.0,0.00010958,2]
[353245588,1739715050280,-500.0,0.00010958,2]
[353245589,1739715050289,-500.0,0.00010958,2]
[353245590,1739715050298,-509.88341455,0.00010958,2]
[353245591,1739715050307,-500.0,0.00010958,2]
[353245592,1739715050317,-958.21,0.00010958,2]
[353245593,1739715050326,-500.0,0.00010958,2]
[353245594,1739715050335,-502.34789651,0.00010958,2]
[353245595,1739715050344,-501.66267971,0.00010958,2]
[353245596,1739715050354,-519.8748427,0.00010958,2]
[353245597,1739715050364,-504.35514761,0.00010958,2]
[353245598,1739715050373,-500.0,0.00010958,2]
[353245599,1739715050383,-500.0,0.00010958,2]
[353245600,1739715050391,-1060.48,0.00010958,2]
[353245601,1739715050401,-509.24587225,0.00010958,2]
[353245602,1739715050411,-579.22,0.00010958,2]
[353245603,1739715050423,-1730.93,0.00010958,2]
[353245604,1739715050432,-500.0,0.00010958,2]
[353245605,1739715050442,-454.64160166,0.00010958,2]
[353245606,1739715050452,-500.0,0.00010958,2]
[353245607,1739715050461,-722.92,0.00010958,2]
[353245608,1739715050471,-786.46,0.00010958,2]
[353245609,1739715050480,-500.0,0.00010958,2]
[353245610,1739715050489,-466.67502665,0.00010958,2]
[353245611,1739715050498,-1270.84,0.00010958,2]
[353245612,1739715050507,-804.45,0.00010958,2]
[353245613,1739715050516,-500.0,0.00010958,2]
[353245614,1739715050525,-878.61,0.00010958,2]
[353245615,1739715050535,-500.0,0.00010958,2]
[353245616,1739715050545,-504.10688933,0.00010958,2]
[353245617,1739715050554,-500.0,0.00010958,2]
[353245618,1739715050564,-1391.28,0.00010958,2]
[353245619,1739715050575,-500.0,0.00010958,2]
[353245620,1739715050585,-500.0,0.00010958,2]
[353245621,1739715050595,-500.0,0.00010958,2]
[353245622,1739715050605,-500.0,0.00010958,2]
[353245623,1739715050614,-500.0,0.00010958,2]
[353245624,1739715050624,-500.0,0.00010958,2]
[353245625,1739715050633,-500.0,0.00010958,2]
[353245626,1739715050643,-807.08,0.00010958,2]
[353245627,1739715050652,-500.0,0.00010958,2]
[353245628,1739715050661,-652.19,0.00010958,2]
[353245629,1739715050670,-1342.55,0.00010958,2]
[353245630,1739715050679,-500.0,0.00010958,2]
[353245631,1739715050688,-500.0,0.00010958,2]
[353245632,1739715050700,-1331.21,0.00010958,2]
[353245633,1739715050709,-500.0,0.00010958,2]
[353245634,1739715050719,-500.0,0.00010958,2]
[353245635,1739715050728,-500.0,0.00010958,2]
[353245636,1739715050738,-500.0,0.00010958,2]
[353245637,1739715050747,-500.0,0.00010958,2]
[353245638,1739715050757,-500.0,0.00010958,2]
[353245639,1739715050766,-1435.31,0.00010958,2]
[353245640,1739715050775,-500.0,0.00010958,2]
[353245641,1739715050784,-500.0,0.00010958,2]
[353245642,1739715050793,-500.0,0.00010958,2]
[353245643,1739715050802,-500.0,0.00010958,2]
[353245644,1739715050811,-500.0,0.00010958,2]
[353245645,1739715050820,-547.21181629,0.00010958,2]
[353245646,1739715050830,-500.0,0.00010958,2]
[353245647,1739715050839,-2872.91,0.00010958,2]
[353245648,1739715050849,-1185.6,0.00010958,2]
[353245649,1739715050858,-500.0,0.00010958,2]
[353245650,1739715050867,-500.0,0.00010958,2]
[353245651,1739715050878,-500.0,0.00010958,2]
[353245652,1739715050887,-507.08577796,0.00010958,2]
[353245653,1739715050896,-500.0,0.00010958,2]
[353245654,1739715050906,-501.20077664,0.00010958,2]
[353245655,1739715050914,-500.0,0.00010958,2]
[353245656,1739715050923,-500.0,0.00010958,2]
[353245657,1739715050932,-500.0,0.00010958,2]
[353245658,1739715050941,-500.0,0.00010958,2]
[353245659,1739715050952,-880.05,0.00010958,2]
[353245660,1739715050961,-501.3463335,0.00010958,2]
[353245661,1739715050971,-1065.5,0.00010958,2]
[353245662,1739715050979,-2343.11,0.00010958,2]
[353245663,1739715050989,-500.0,0.00010958,2]
[353245664,1739715050998,-500.0,0.00010958,2]
[353245665,1739715051007,-1602.94,0.00010958,2]
[353245666,1739715051016,-500.0,0.00010958,2]
[353245667,1739715051025,-505.60284925,0.00010958,2]
[353245668,1739715051034,-1665.81,0.00010958,2]
[353245669,1739715051043,-500.0,0.00010958,2]
[353245670,1739715051052,-502.75538289,0.00010958,2]
[353245671,1739715051061,-767.8,0.00010958,2]
[353245672,1739715051070,-557.07,0.00010958,2]
[353245673,1739715051080,-896.78,0.00010958,2]
[353245674,1739715051089,-1549.56,0.00010958,2]
[353245675,1739715051099,-500.0,0.00010958,2]
[353245676,1739715051108,-2011.15,0.00010958,2]
[353245677,1739715051117,-500.0,0.00010958,2]
[353245678,1739715051126,-500.0,0.00010958,2]
[353245679,1739715051135,-921.0,0.00010958,2]
[353245680,1739715051144,-500.0,0.00010958,2]
[353245681,1739715051154,-780.05,0.00010958,2]
[353245682,1739715051163,-2015.93,0.00010958,2]
[353245683,1739715051173,-500.0,0.00010958,2]
[353245684,1739715051182,-500.0,0.00010958,2]
[353245685,1739715051191,-500.0,0.00010958,2]
[353245686,1739715051203,-5933.4,0.00010958,2]
[353245687,1739715051212,-505.91432047,0.00010958,2]
[353245688,1739715051222,-1028.79,0.00010958,2]
[353245689,1739715051231,-500.0,0.00010958,2]
[353245690,1739715051241,-806.38,0.00010958,2]
[353245691,1739715051251,-502.54973924,0.00010958,2]
[353245692,1739715051260,-1735.22,0.00010958,2]
[353245693,1739715051270,-500.0,0.00010958,2]
[353245694,1739715051279,-618.15,0.00010958,2]
[353245695,1739715051288,-504.01083271,0.00010958,2]
[353245696,1739715051298,-500.0,0.00010958,2]
[353245697,1739715051308,-2177.12,0.00010958,2]
[353245698,1739715051318,-500.0,0.00010958,2]
[353245699,1739715051327,-500.0,0.00010958,2]
[353245700,1739715051336,-594.58586225,0.00010958,2]
[353245701,1739715051345,-500.0,0.00010958,2]
[353245702,1739715051354,-503.28632657,0.00010958,2]
[353245703,1739715051364,-500.0,0.00010958,2]
[353245704,1739715051374,-869.88,0.00010958,2]
[353245705,1739715051384,-1738.63,0.00010958,2]
[353245706,1739715051394,-500.0,0.00010958,2]
[353245707,1739715051407,-1405.53,0.00010958,2]
[353245708,1739715051416,-500.0,0.00010958,2]
[353245709,1739715051426,-503.63034899,0.00010958,2]
[353245710,1739715051435,-1655.05,0.00010958,2]
[353245711,1739715051447,-500.0,0.00010958,2]
[353245712,1739715051456,-503.05466665,0.00010958,2]
[353245713,1739715051465,-500.0,0.00010958,2]
[353245714,1739715051474,-500.0,0.00010958,2]
[353245715,1739715051483,-610.56038094,0.00010958,2]
[353245716,1739715051493,-502.90229219,0.00010958,2]
[353245717,1739715051502,-1154.03,0.00010958,2]
[353245718,1739715051512,-1858.43,0.00010958,2]
[353245719,1739715051521,-500.0,0.00010958,2]
[353245720,1739715051530,-500.0,0.00010958,2]
[353245721,1739715051540,-1388.75,0.00010958,2]
[353245722,1739715051548,-505.05479314,0.00010958,2]
[353245723,1739715051558,-506.37,0.00010958,2]
[353245724,1739715051567,-500.0,0.00010958,2]
[353245725,1739715051577,-845.0,0.00010958,2]
[353245726,1739715051587,-503.56304194,0.00010958,2]
[353245727,1739715051596,-2137.22,0.00010958,2]
[353245728,1739715051606,-500.0,0.00010958,2]
[353245729,1739715051616,-500.0,0.00010958,2]
[353245730,1739715051625,-500.0,0.00010958,2]
[353245731,1739715051635,-500.0,0.00010958,2]
[353245732,1739715051645,-503.74177744,0.00010958,2]
[353245733,1739715051655,-500.0,0.00010958,2]
[353245734,1739715051665,-2717.32,0.00010958,2]
[353245735,1739715051674,-500.0,0.00010958,2]
[353245736,1739715051684,-548.67074151,0.00010958,2]
[353245737,1739715051694,-1722.09,0.00010958,2]
[353245738,1739715051705,-500.0,0.00010958,2]
[353245739,1739715051715,-1132.72,0.00010958,2]
[353245740,1739715051725,-862.14,0.00010958,2]
[353245741,1739715051735,-2266.58,0.00010958,2]
[353245742,1739715051746,-504.75545915,0.00010958,2]
[353245743,1739715051756,-500.0,0.00010958,2]
[353245744,1739715051766,-500.0,0.00010958,2]
[353245745,1739715051776,-1546.15,0.00010958,2]
[353245746,1739715051786,-691.19,0.00010958,2]
[353245747,1739715051796,-500.0,0.00010958,2]
[353245748,1739715051806,-500.0,0.00010958,2]
[353245749,1739715051816,-716.06,0.00010958,2]
[353245750,1739715051826,-500.0,0.00010958,2]
[353245751,1739715051835,-500.0,0.00010958,2]
[353245752,1739715051845,-691.61,0.00010958,2]
[353245753,1739715051854,-500.0,0.00010958,2]
[353245754,1739715051863,-500.0,0.00010958,2]
[353245755,1739715051873,-504.60752223,0.00010958,2]
[353245756,1739715051882,-3681.57,0.00010958,2]
[353245757,1739715051892,-500.0,0.00010958,2]
[353245758,1739715051901,-1750.04,0.00010958,2]
[353245759,1739715051911,-500.0,0.00010958,2]
[353245760,1739715051920,-500.0,0.00010958,2]
[353245761,1739715052053,-2206.06,0.00010958,2]
[353245762,1739715052063,-1226.98,0.00010958,2]
[353245763,1739715052072,-500.0,0.00010958,2]
[353245764,1739715052081,-500.0,0.00010958,2]
[353245765,1739715052091,-500.0,0.00010958,2]
[353245766,1739715052101,-500.0,0.00010958,2]
[353245767,1739715052110,-500.0,0.00010958,2]
[353245768,1739715052119,-1012.09,0.00010958,2]
[353245769,1739715052128,-556.09,0.00010958,2]
[353245770,1739715052137,-500.0,0.00010958,2]
[353245771,1739715052146,-509.88636799,0.00010958,2]
[353245772,1739715052155,-4179.36,0.00010958,2]
[353245773,1739715052164,-500.0,0.00010958,2]
[353245774,1739715052173,-1772.08,0.00010958,2]
[353245775,1739715052182,-500.0,0.00010958,2]
[353245776,1739715052191,-1227.53,0.00010958,2]
[353245777,1739715052200,-500.0,0.00010958,2]
[353245778,1739715052209,-500.0,0.00010958,2]
[353245779,1739715052218,-708.46,0.00010958,2]
[353245780,1739715052227,-500.0,0.00010958,2]
[353245781,1739715052236,-1664.11,0.00010958,2]
[353245782,1739715052245,-512.99042377,0.00010958,2]
[353245783,1739715052255,-1847.98,0.00010958,2]
[353245784,1739715052264,-985.39,0.00010958,2]
[353245785,1739715052273,-500.0,0.00010958,2]
[353245786,1739715052282,-500.0,0.00010958,2]
[353245787,1739715052291,-500.0,0.00010958,2]
[353245788,1739715052300,-500.0,0.00010958,2]
[353245789,1739715052310,-500.0,0.00010958,2]
[353245790,1739715052319,-2328.12,0.00010958,2]
[353245791,1739715052328,-500.0,0.00010958,2]
[353245792,1739715052337,-502.79538116,0.00010958,2]
[353245793,1739715052346,-500.0,0.00010958,2]
[353245794,1739715052355,-500.0,0.00010958,2]
[353245795,1739715052364,-500.0,0.00010958,2]
[353245796,1739715052373,-1121.04,0.00010958,2]
[353245797,1739715052383,-2199.9,0.00010958,2]
[353245798,1739715052392,-500.0,0.00010958,2]
[353245799,1739715052401,-1873.13,0.00010958,2]
[353245800,1739715052411,-500.0,0.00010958,2]
[353245801,1739715052422,-616.19431063,0.00010958,2]
[353245802,1739715052433,-1589.01,0.00010958,2]
[353245803,1739715052441,-500.0,0.00010958,2]
[353245804,1739715052452,-634.08,0.00010958,2]
[353245805,1739715052461,-500.0,0.00010958,2]
[353245806,1739715052471,-500.0,0.00010958,2]
[353245807,1739715052480,-500.0,0.00010958,2]
[353245808,1739715052490,-500.0,0.00010958,2]
[353245809,1739715052499,-2233.29,0.00010958,2]
[353245810,1739715052509,-823.12,0.00010958,2]
[353245811,1739715052518,-500.0,0.00010958,2]
[353245812,1739715052527,-851.28,0.00010958,2]
[353245813,1739715052537,-500.0,0.00010958,2]
[353245814,1739715052546,-500.0,0.00010958,2]
[353245815,1739715052555,-1640.79,0.00010958,2]
[353245816,1739715052564,-1471.53,0.00010958,2]
[353245817,1739715052573,-577.70241002,0.00010958,2]
[353245818,1739715052583,-1973.36,0.00010958,2]
[353245819,1739715052592,-500.0,0.00010958,2]
[353245820,1739715052601,-1147.19,0.00010958,2]
[353245821,1739715052610,-1149.84,0.00010958,2]
[353245822,1739715052619,-503.08576042,0.00010958,2]
[353245823,1739715052628,-504.62271104,0.00010958,2]
[353245824,1739715052637,-500.0,0.00010958,2]
[353245825,1739715052646,-501.29760696,0.00010958,2]
[353245826,1739715052655,-2803.89,0.00010958,2]
[353245827,1739715052664,-1721.95,0.00010958,2]
[353245828,1739715052672,-656.28,0.00010958,2]
[353245829,1739715052682,-500.0,0.00010958,2]
[353245830,1739715052691,-595.56,0.00010958,2]
[353245831,1739715052701,-4744.83,0.00010958,2]
[353245832,1739715052710,-1314.73,0.00010958,2]
[353245833,1739715052719,-500.0,0.00010958,2]
[353245834,1739715052729,-500.0,0.00010958,2]
[353245835,1739715052739,-1553.5,0.00010958,2]
[353245836,1739715052749,-1829.91,0.00010958,2]
[353245837,1739715052758,-1764.57,0.00010958,2]
[353245838,1739715052768,-500.0,0.00010958,2]
[353245839,1739715052777,-500.0,0.00010958,2]
[353245840,1739715052787,-1182.45,0.00010958,2]
[353245841,1739715052796,-502.40410751,0.00010958,2]
[353245842,1739715052806,-500.0,0.00010958,2]
[353245843,1739715052816,-500.0,0.00010958,2]
[353245844,1739715052826,-505.11278294,0.00010958,2]
[353245845,1739715052836,-500.0,0.00010958,2]
[353245846,1739715052845,-500.0,0.00010958,2]
[353245847,1739715052855,-1002.85,0.00010958,2]
[353245848,1739715052864,-500.0,0.00010958,2]
[353245849,1739715052874,-501.95875711,0.00010958,2]
[353245850,1739715052883,-1136.89,0.00010958,2]
[353245851,1739715052892,-1653.72,0.00010958,2]
[353245852,1739715052902,-501.0723375,0.00010958,2]
[353245853,1739715052911,-500.0,0.00010958,2]
[353245854,1739715052921,-500.0,0.00010958,2]
[353245855,1739715052930,-500.0,0.00010958,2]
[353245856,1739715052939,-620.77,0.00010958,2]
[353245857,1739715052951,-502.75595197,0.00010958,2]
[353245858,1739715052960,-504.29337705,0.00010958,2]
[353245859,1739715052970,-510.7769943,0.00010958,2]
[353245860,1739715052980,-501.56231021,0.00010958,2]
[353245861,1739715052989,-500.0,0.00010958,2]
[353245862,1739715052999,-500.0,0.00010958,2]
[353245863,1739715053008,-500.0,0.00010958,2]
[353245864,1739715053017,-1095.24,0.00010958,2]
[353245865,1739715053026,-1935.06,0.00010958,2]
[353245866,1739715053036,-2009.56,0.00010958,2]
[353245867,1739715053045,-502.45192096,0.00010958,2]
[353245868,1739715053055,-500.0,0.00010958,2]
[353245869,1739715053064,-2577.43,0.00010958,2]
[353245870,1739715053074,-500.0,0.00010958,2]
[353245871,1739715053083,-502.07935023,0.00010958,2]
[353245872,1739715053092,-500.0,0.00010958,2]
[353245873,1739715053102,-459.79427003,0.00010958,2]
[353245874,1739715053111,-500.0,0.00010958,2]
[353245875,1739715053120,-1487.02,0.00010958,2]
[353245876,1739715053129,-2733.14,0.00010958,2]
[353245877,1739715053138,-500.0,0.00010958,2]
[353245878,1739715053147,-500.0,0.00010958,2]
[353245879,1739715053157,-500.0,0.00010958,2]
[353245880,1739715053167,-503.46910748,0.00010958,2]
[353245881,1739715053176,-501.46880755,0.00010958,2]
[353245882,1739715053186,-1128.53,0.00010958,2]
[353245883,1739715053196,-500.0,0.00010958,2]
[353245884,1739715053205,-500.0,0.00010958,2]
[353245885,1739715053215,-929.94,0.00010958,2]
[353245886,1739715053225,-1672.93,0.00010958,2]
[353245887,1739715053234,-500.0,0.00010958,2]
[353245888,1739715053244,-1816.55,0.00010958,2]
[353245889,1739715053253,-560.45,0.00010958,2]
[353245890,1739715053262,-500.55808965,0.00010958,2]
[353245891,1739715053271,-500.0,0.00010958,2]
[353245892,1739715053281,-500.0,0.00010958,2]
[353245893,1739715053290,-500.0,0.00010958,2]
[353245894,1739715053300,-500.0,0.00010958,2]
[353245895,1739715053309,-1222.77,0.00010958,2]
[353245896,1739715053319,-500.0,0.00010958,2]
[353245897,1739715053328,-203.2621757,0.00010958,2]
[353245898,1739715053338,-503.02,0.00010958,2]
[353245899,1739715053347,-500.0,0.00010958,2]
[353245900,1739715053356,-1027.59,0.00010958,2]
[353245901,1739715053365,-500.0,0.00010958,2]
[353245902,1739715053374,-501.92814411,0.00010958,2]
[353245903,1739715053383,-1618.22,0.00010958,2]
[353245904,1739715053393,-1147.58,0.00010958,2]
[353245905,1739715053404,-859.27,0.00010958,2]
[353245906,1739715053415,-543.65020439,0.00010958,2]
[353245907,1739715053424,-573.19,0.00010958,2]
[353245908,1739715053433,-501.37877415,0.00010958,2]
[353245909,1739715053443,-500.0,0.00010958,2]
[353245910,1739715053455,-837.31,0.00010958,2]
[353245911,1739715053464,-500.0,0.00010958,2]
[353245912,1739715053473,-500.0,0.00010958,2]
[353245913,1739715053485,-1475.15,0.00010958,2]
[353245914,1739715053495,-500.0,0.00010958,2]
[353245915,1739715053504,-593.61,0.00010958,2]
[353245916,1739715053513,-3567.55,0.00010958,2]
[353245917,1739715053522,-560.7,0.00010958,2]
[353245918,1739715053531,-613.77,0.00010958,2]
[353245919,1739715053540,-500.0,0.00010958,2]
[353245920,1739715053549,-1952.48,0.00010958,2]
[353245921,1739715053558,-710.23,0.00010958,2]
[353245922,1739715053567,-500.0,0.00010958,2]
[353245923,1739715053576,-680.82,0.00010958,2]
[353245924,1739715053585,-500.0,0.00010958,2]
[353245925,1739715053595,-736.75,0.00010958,2]
[353245926,1739715053604,-500.0,0.00010958,2]
[353245927,1739715053615,-1631.16,0.00010958,2]
[353245928,1739715053624,-500.0,0.00010958,2]
[353245929,1739715053633,-500.0,0.00010958,2]
[353245930,1739715053642,-500.0,0.00010958,2]
[353245931,1739715053652,-500.0,0.00010958,2]
[353245932,1739715053661,-500.0,0.00010958,2]
[353245933,1739715053670,-500.0,0.00010958,2]
[353245934,1739715053679,-501.80866251,0.00010958,2]
[353245935,1739715053688,-500.0,0.00010958,2]
[353245936,1739715053699,-500.0,0.00010958,2]
[353245937,1739715053709,-1798.48,0.00010958,2]
[353245938,1739715053718,-500.0,0.00010958,2]
[353245939,1739715053727,-500.0,0.00010958,2]
[353245940,1739715053736,-2393.06,0.00010958,2]
[353245941,1739715053745,-285.72,0.00010959,2]
[353245942,1739715053755,-1000.0,0.00010959,2]
[353245943,1739715053763,-1000.0,0.00010959,2]
[353245944,1739715053772,-1000.0,0.00010959,2]
[353245945,1739715053781,-1000.0,0.00010959,2]
[353245946,1739715053791,-1000.0,0.00010959,2]
[353245947,1739715053800,-1000.0,0.00010959,2]
[353245948,1739715053809,-1000.0,0.00010959,2]
[353245949,1739715053819,-1000.0,0.00010959,2]
[353245950,1739715053828,-1000.0,0.00010959,2]
[353245951,1739715053837,-1000.0,0.00010959,2]
[353245952,1739715053846,-1000.0,0.00010959,2]
[353245953,1739715053856,-1000.0,0.00010959,2]
[353245954,1739715053865,-1000.0,0.00010959,2]
[353245955,1739715053875,-1000.0,0.00010959,2]
[353245956,1739715053884,-1000.0,0.00010959,2]
[353245957,1739715053894,-1000.0,0.00010959,2]
[353245958,1739715053903,-1000.0,0.00010959,2]
[353245959,1739715053913,-1000.0,0.00010959,2]
[353245960,1739715053921,-1000.0,0.00010959,2]
[353245961,1739715053931,-1000.0,0.00010959,2]
[353245962,1739715053940,-150.0,0.00010959,2]
[353245963,1739715053949,-759.87,0.00010959,2]
[353245964,1739715053958,-400.0,0.0001097,2]
[353245965,1739715053967,-400.0,0.0001097,2]
[353245966,1739715053976,-400.0,0.0001097,2]
[353245967,1739715053985,-685.39737105,0.0001097,2]
[353245968,1739715053994,-202.0,0.0001098,2]
[353245969,1739715054002,-205.0,0.0001098,2]
[353245970,1739715054011,-208.0,0.0001098,2]
[353245971,1739715054020,-223.384526,0.00010999,2]
[353245972,1739715054029,-127185.78711601,0.00011,2]
[353245973,1739715054038,-5242.1349351,0.00011,2]
[353245974,1739715054047,-203.8,0.00011,2]
[353245975,1739715054056,-530.06,0.00011,2]
[353245976,1739715054065,-500.0,0.00011,2]
[353245977,1739715054074,-500.0,0.00011,2]
[353245978,1739715054083,-500.0,0.00011,2]
[353245979,1739715054092,-500.0,0.00011,2]
[353245980,1739715054101,-500.0,0.00011,2]
[353245981,1739715054110,-203.8,0.00011,2]
[353245982,1739715054119,-1000.0,0.00011,2]
[353245983,1739715054128,-457.0,0.00011,2]
[353245984,1739715054137,-200.0,0.0001102,2]
[353245985,1739715054146,-151.0,0.00011041,2]
[353245986,1739715054155,-500.0,0.00011041,2]
[353245987,1739715054164,-162.17783118,0.00011041,2]
[353245988,1739715054173,-344.43417589,0.00011041,2]
[353245989,1739715054301,-500.0,0.00011041,2]
[353245990,1739715054310,-500.0,0.00011041,2]
[353245991,1739715054321,-500.0,0.00011041,2]
[353245992,1739715054330,-500.0,0.00011041,2]
[353245993,1739715054339,-621.27495369,0.00011041,2]
[353245994,1739715054349,-520.49126793,0.00011041,2]
[353245995,1739715054358,-500.0,0.00011041,2]
[353245996,1739715054368,-500.0,0.00011041,2]
[353245997,1739715054377,-500.0,0.00011041,2]
[353245998,1739715054386,-349.21050819,0.00011041,2]
[353245999,1739715054395,-500.0,0.00011041,2]
[353246000,1739715054406,-500.0,0.00011041,2]
[353246001,1739715054418,-500.0,0.00011041,2]
[353246002,1739715054427,-500.0,0.00011041,2]
[353246003,1739715054437,-500.0,0.00011041,2]
[353246004,1739715054446,-500.0,0.00011041,2]
[353246005,1739715054458,-500.0,0.00011041,2]
[353246006,1739715054467,-500.0,0.00011041,2]
[353246007,1739715054476,-500.0,0.00011041,2]
[353246008,1739715054485,-500.0,0.00011041,2]
[353246009,1739715054496,-500.0,0.00011041,2]
[353246010,1739715054506,-500.0,0.00011041,2]
[353246011,1739715054515,-190.37297259,0.00011041,2]
[353246012,1739715054524,-500.0,0.00011041,2]
[353246013,1739715054533,-500.0,0.00011041,2]
[353246014,1739715054542,-500.0,0.00011041,2]
[353246015,1739715054552,-500.0,0.00011041,2]
[353246016,1739715054561,-500.0,0.00011041,2]
[353246017,1739715054571,-500.0,0.00011041,2]
[353246018,1739715054580,-500.0,0.00011041,2]
[353246019,1739715054590,-302.29254669,0.00011041,2]
[353246020,1739715054599,-500.0,0.00011041,2]
[353246021,1739715054609,-502.65595971,0.00011041,2]
[353246022,1739715054618,-500.0,0.00011041,2]
[353246023,1739715054628,-500.0,0.00011041,2]
[353246024,1739715054637,-979.27,0.00011041,2]
[353246025,1739715054647,-500.0,0.00011041,2]
[353246026,1739715054657,-500.0,0.00011041,2]
[353246027,1739715054667,-500.0,0.00011041,2]
[353246028,1739715054677,-500.0,0.00011041,2]
[353246029,1739715054686,-500.0,0.00011041,2]
[353246030,1739715054696,-500.0,0.00011041,2]
[353246031,1739715054706,-500.0,0.00011041,2]
[353246032,1739715054716,-500.0,0.00011041,2]
[353246033,1739715054727,-500.0,0.00011041,2]
[353246034,1739715054737,-500.0,0.00011041,2]
[353246035,1739715054746,-500.0,0.00011041,2]
[353246036,1739715054756,-504.67866383,0.00011041,2]
[353246037,1739715054766,-500.0,0.00011041,2]
[353246038,1739715054776,-500.0,0.00011041,2]
[353246039,1739715054786,-500.0,0.00011041,2]
[353246040,1739715054795,-500.0,0.00011041,2]
[353246041,1739715054806,-500.0,0.00011041,2]
[353246042,1739715054815,-500.0,0.00011041,2]
[353246043,1739715054825,-500.0,0.00011041,2]
[353246044,1739715054835,-500.0,0.00011041,2]
[353246045,1739715054845,-500.0,0.00011041,2]
[353246046,1739715054854,-500.0,0.00011041,2]
[353246047,1739715054865,-500.0,0.00011041,2]
[353246048,1739715054882,-500.0,0.00011041,2]
[353246049,1739715054896,-500.0,0.00011041,2]
[353246050,1739715054906,-500.0,0.00011041,2]
[353246051,1739715054916,-512.78,0.00011041,2]
[353246052,1739715054926,-499.92879955,0.00011041,2]
[353246053,1739715054936,-507.24791472,0.00011041,2]
[353246054,1739715054946,-500.0,0.00011041,2]
[353246055,1739715054956,-500.0,0.00011041,2]
[353246056,1739715054967,-500.0,0.00011041,2]
[353246057,1739715054976,-500.0,0.00011041,2]
[353246058,1739715054986,-500.0,0.00011041,2]
[353246059,1739715054995,-500.0,0.00011041,2]
[353246060,1739715055004,-500.0,0.00011041,2]